Workbook

Sheet drawing
A1: department | B1: time in March 2021 | C1: March standard deviation | D1: time in November 2020 | E1: November standard deviation | F1: p | G1: 95%CI
G2: Lower | H2: Upper
A3: ward1 | B3: 10.69 | C3: 5.89 | D3: 20.00 | E3: 7.48 | F3: 0.00 | G3: -14.17 | H3: -4.45
A4: ward2 | B4: 14.34 | C4: 6.93 | D4: 21.45 | E4: 9.48 | F4: 0.03 | G4: -13.56 | H4: -0.66
A5: ward3 | B5: 10.41 | C5: 5.98 | D5: 19.12 | E5: 6.38 | F5: 0.01 | G5: -14.52 | H5: -2.90
A6: ward4 | B6: 18.97 | C6: 3.64 | D6: 27.68 | E6: 6.75 | F6: 0.00 | G6: -11.96 | H6: -5.46
A7: ward5 | B7: 22.22 | C7: 13.50 | D7: 61.52 | E7: 7.50 | F7: 0.00 | G7: -46.00 | H7: -32.60

Sheet Statistics
A1: department | B1: time in March 2021 | C1: time in November 2020 | D1: p | E1: 95%CI
E2: 下限 | F2: 上限
A3: ward1 | B3: 10.69±5.89 | C3: 20.00±7.48 | D3: 0.00 | E3: -14.17 | F3: -4.45
A4: ward2 | B4: 14.34±6.93 | C4: 21.45±9.48 | D4: 0.03 | E4: -13.56 | F4: -0.66
A5: ward3 | B5: 10.41±5.98 | C5: 19.12±6.38 | D5: 0.01 | E5: -14.52 | F5: -2.90
A6: ward4 | B6: 18.97±3.64 | C6: 27.68±6.75 | D6: 0.00 | E6: -11.96 | F6: -5.46
A7: ward5 | B7: 22.22±13.50 | C7: 61.52±7.50 | D7: 0.00 | E7: -46.00 | F7: -32.60

Sheet ward1
B1: date | C1: Starting time | D1: End Time | E1: department | F1: state | G1: consume time (min)
A2: after
B3: 2021-03-30T10:25:54 | C3: 10:14:01 | D3: 10:25:54 | E3: the first ward of respiratory | F3: dispensing check completed | G3: =(D3-C3)*24*60 -> 12
B4: 2021-03-24T10:08:13 | C4: 09:54:36 | D4: 10:08:13 | E4: the first ward of respiratory | F4: dispensing check completed | G4: 14
B5: 2021-03-23T10:16:11 | C5: 10:02:16 | D5: 10:16:11 | E5: the first ward of respiratory | F5: dispensing check completed | G5: 14
B6: 2021-03-22T09:21:54 | C6: 09:00:44 | D6: 09:21:54 | E6: the first ward of respiratory | F6: dispensing check completed | G6: 21
B7: 2021-03-21T09:30:02 | C7: 09:11:49 | D7: 09:30:02 | E7: the first ward of respiratory | F7: dispensing check completed | G7: 18
B8: 2021-03-20T11:23:13 | C8: 11:19:41 | D8: 11:23:13 | E8: the first ward of respiratory | F8: dispensing check completed | G8: 4
B9: 2021-03-20T09:34:28 | C9: 09:13:56 | D9: 09:34:28 | E9: the first ward of respiratory | F9: dispensing check completed | G9: 21
B10: 2021-03-19T11:14:25 | C10: 11:10:02 | D10: 11:14:25 | E10: the first ward of respiratory | F10: dispensing check completed | G10: 4
B11: 2021-03-19T08:41:47 | C11: 08:24:33 | D11: 08:41:47 | E11: the first ward of respiratory | F11: dispensing check completed | G11: 17
B12: 2021-03-18T09:15:10 | C12: 09:10:04 | D12: 09:15:10 | E12: the first ward of respiratory | F12: dispensing check completed | G12: 5
B13: 2021-03-17T11:15:58 | C13: 11:08:38 | D13: 11:15:58 | E13: the first ward of respiratory | F13: dispensing check completed | G13: 7
B14: 2021-03-17T09:05:33 | C14: 08:49:46 | D14: 09:05:33 | E14: the first ward of respiratory | F14: dispensing check completed | G14: 16
B15: 2021-03-16T11:12:58 | C15: 11:07:11 | D15: 11:12:58 | E15: the first ward of respiratory | F15: dispensing check completed | G15: 6
B16: 2021-03-16T09:03:50 | C16: 08:34:28 | D16: 09:03:50 | E16: the first ward of respiratory | F16: dispensing check completed | G16: 29
B17: 2021-03-15T11:20:58 | C17: 11:14:53 | D17: 11:20:58 | E17: the first ward of respiratory | F17: dispensing check completed | G17: 6
B18: 2021-03-15T08:59:27 | C18: 08:43:03 | D18: 08:59:27 | E18: the first ward of respiratory | F18: dispensing check completed | G18: 16
B19: 2021-03-14T11:23:03 | C19: 11:14:45 | D19: 11:23:03 | E19: the first ward of respiratory | F19: dispensing check completed | G19: 8
B20: 2021-03-13T11:15:52 | C20: 11:10:43 | D20: 11:15:52 | E20: the first ward of respiratory | F20: dispensing check completed | G20: 5
B21: 2021-03-13T08:50:28 | C21: 08:31:34 | D21: 08:50:28 | E21: the first ward of respiratory | F21: dispensing check completed | G21: 19
B22: 2021-03-12T11:27:02 | C22: 11:13:24 | D22: 11:27:02 | E22: the first ward of respiratory | F22: dispensing check completed | G22: 14
B23: 2021-03-12T09:09:42 | C23: 08:44:36 | D23: 09:09:42 | E23: the first ward of respiratory | F23: dispensing check completed | G23: 25
B24: 2021-03-11T11:30:24 | C24: 11:12:07 | D24: 11:30:24 | E24: the first ward of respiratory | F24: dispensing check completed | G24: 18
B25: 2021-03-10T11:25:18 | C25: 11:19:33 | D25: 11:25:18 | E25: the first ward of respiratory | F25: dispensing check completed | G25: 6
B26: 2021-03-10T09:07:31 | C26: 08:46:40 | D26: 09:07:31 | E26: the first ward of respiratory | F26: dispensing check completed | G26: 21
B27: 2021-03-08T11:21:09 | C27: 11:17:41 | D27: 11:21:09 | E27: the first ward of respiratory | F27: dispensing check completed | G27: 3
B28: 2021-03-08T09:16:31 | C28: 08:53:28 | D28: 09:16:31 | E28: the first ward of respiratory | F28: dispensing check completed | G28: 23
B29: 2021-03-07T10:41:49 | C29: 10:12:41 | D29: 10:41:49 | E29: the first ward of respiratory | F29: dispensing check completed | G29: 29
B30: 2021-03-06T11:22:07 | C30: 11:14:42 | D30: 11:22:07 | E30: the first ward of respiratory | F30: dispensing check completed | G30: 7
B31: 2021-03-06T09:21:18 | C31: 09:02:32 | D31: 09:21:18 | E31: the first ward of respiratory | F31: dispensing check completed | G31: 19
B32: 2021-03-05T11:20:23 | C32: 11:16:25 | D32: 11:20:23 | E32: the first ward of respiratory | F32: dispensing check completed | G32: 4
B33: 2021-03-05T09:20:35 | C33: 08:59:40 | D33: 09:20:35 | E33: the first ward of respiratory | F33: dispensing check completed | G33: 21
A34: before
B35: 2020-11-23T08:57:31 | C35: 08:31:50 | D35: 08:57:31 | E35: the first ward of respiratory | F35: dispensing check completed | G35: =(D35-C35)*24*60 -> 26
B36: 2020-11-21T08:59:31 | C36: 08:30:54 | D36: 08:59:31 | E36: the first ward of respiratory | F36: dispensing check completed | G36: 29
B37: 2020-11-20T08:56:53 | C37: 08:29:40 | D37: 08:56:53 | E37: the first ward of respiratory | F37: dispensing check completed | G37: 27
B38: 2020-11-19T09:04:14 | C38: 08:37:14 | D38: 09:04:14 | E38: the first ward of respiratory | F38: dispensing check completed | G38: 27
B39: 2020-11-16T15:20:46 | C39: 15:15:41 | D39: 15:20:46 | E39: the first ward of respiratory | F39: dispensing check completed | G39: 5
B40: 2020-11-16T09:20:24 | C40: 08:55:19 | D40: 09:20:24 | E40: the first ward of respiratory | F40: dispensing check completed | G40: 25
B41: 2020-11-15T09:02:23 | C41: 08:44:31 | D41: 09:02:23 | E41: the first ward of respiratory | F41: dispensing check completed | G41: 18
B42: 2020-11-11T08:59:19 | C42: 08:46:00 | D42: 08:59:19 | E42: the first ward of respiratory | F42: dispensing check completed | G42: 13
B43: 2020-11-09T09:01:30 | C43: 08:42:23 | D43: 09:01:30 | E43: the first ward of respiratory | F43: dispensing check completed | G43: 19
B44: 2020-11-08T09:17:12 | C44: 08:51:49 | D44: 09:17:12 | E44: the first ward of respiratory | F44: dispensing check completed | G44: 25
B45: 2020-11-05T11:45:58 | C45: 11:32:58 | D45: 11:45:58 | E45: the first ward of respiratory | F45: dispensing check completed | G45: 13
B46: 2020-11-05T09:13:46 | C46: 08:53:05 | D46: 09:13:46 | E46: the first ward of respiratory | F46: dispensing check completed | G46: 21
B47: 2020-11-04T11:46:04 | C47: 11:37:04 | D47: 11:46:04 | E47: the first ward of respiratory | F47: dispensing check completed | G47: 9
B48: 2020-11-04T09:25:55 | C48: 09:01:02 | D48: 09:25:55 | E48: the first ward of respiratory | F48: dispensing check completed | G48: 25
B49: 2020-11-03T11:24:58 | C49: 11:12:56 | D49: 11:24:58 | E49: the first ward of respiratory | F49: dispensing check completed | G49: 12
B50: 2020-11-02T09:35:39 | C50: 09:09:28 | D50: 09:35:39 | E50: the first ward of respiratory | F50: dispensing check completed | G50: 26

Sheet ward2
B1: date | C1: Starting time | D1: End Time | E1: department | F1: state | G1: consume time (min)
A2: after
B3: 2021-03-23T10:31:12 | C3: 10:08:23 | D3: 10:31:12 | E3: the second ward of urology | F3: dispensing check completed | G3: =(D3-C3)*24*60 -> 23
B4: 2021-03-16T10:16:34 | C4: 10:03:21 | D4: 10:16:34 | E4: the second ward of urology | F4: dispensing check completed | G4: 13
B5: 2021-03-13T12:09:23 | C5: 11:50:30 | D5: 12:09:23 | E5: the second ward of urology | F5: dispensing check completed | G5: 19
B6: 2021-03-13T09:49:17 | C6: 9:37:47 | D6: 09:49:17 | E6: the second ward of urology | F6: dispensing check completed | G6: 12
B7: 2021-03-11T11:49:43 | C7: 11:44:08 | D7: 11:49:43 | E7: the second ward of urology | F7: dispensing check completed | G7: 6
B8: 2021-03-11T10:48:21 | C8: 10:30:05 | D8: 10:48:21 | E8: the second ward of urology | F8: dispensing check completed | G8: 18
B9: 2021-03-10T10:01:18 | C9: 9:47:36 | D9: 10:01:18 | E9: the second ward of urology | F9: dispensing check completed | G9: 14
B10: 2021-03-09T10:22:56 | C10: 10:00:47 | D10: 10:22:56 | E10: the second ward of urology | F10: dispensing check completed | G10: 22
B11: 2021-03-08T11:58:18 | C11: 11:35:20 | D11: 11:58:18 | E11: the second ward of urology | F11: dispensing check completed | G11: 23
B12: 2021-03-08T10:06:18 | C12: 9:38:55 | D12: 10:06:18 | E12: the second ward of urology | F12: dispensing check completed | G12: 27
B13: 2021-03-07T11:40:02 | C13: 11:38:11 | D13: 11:40:02 | E13: the second ward of urology | F13: dispensing check completed | G13: 2
B14: 2021-03-07T10:54:27 | C14: 10:34:38 | D14: 10:54:27 | E14: the second ward of urology | F14: dispensing check completed | G14: 20
B15: 2021-03-06T10:22:09 | C15: 10:07:51 | D15: 10:22:09 | E15: the second ward of urology | F15: dispensing check completed | G15: 14
B16: 2021-03-05T16:11:21 | C16: 16:07:02 | D16: 16:11:21 | E16: the second ward of urology | F16: dispensing check completed | G16: 4
B17: 2021-03-05T11:52:49 | C17: 11:41:24 | D17: 11:52:49 | E17: the second ward of urology | F17: dispensing check completed | G17: 11
B18: 2021-03-05T10:16:59 | C18: 9:49:48 | D18: 10:16:59 | E18: the second ward of urology | F18: dispensing check completed | G18: 27
A19: before
B20: 2020-11-23T09:34:41 | C20: 9:03:03 | D20: 09:34:41 | E20: the second ward of urology | F20: dispensing check completed | G20: =(D20-C20)*24*60 -> 32
B21: 2020-11-19T09:22:14 | C21: 9:01:35 | D21: 09:22:14 | E21: the second ward of urology | F21: dispensing check completed | G21: 21
B22: 2020-11-12T09:28:35 | C22: 9:14:51 | D22: 09:28:35 | E22: the second ward of urology | F22: dispensing check completed | G22: 14
B23: 2020-11-11T09:29:50 | C23: 9:03:23 | D23: 09:29:50 | E23: the second ward of urology | F23: dispensing check completed | G23: 26
B24: 2020-11-10T10:23:36 | C24: 9:50:14 | D24: 10:23:36 | E24: the second ward of urology | F24: dispensing check completed | G24: 33
B25: 2020-11-09T09:31:54 | C25: 9:13:40 | D25: 09:31:54 | E25: the second ward of urology | F25: dispensing check completed | G25: 18
B26: 2020-11-05T10:16:59 | C26: 9:38:56 | D26: 10:16:59 | E26: the second ward of urology | F26: dispensing check completed | G26: 38
B27: 2020-11-04T12:10:01 | C27: 11:57:41 | D27: 12:10:01 | E27: the second ward of urology | F27: dispensing check completed | G27: 12
B28: 2020-11-04T09:52:20 | C28: 9:20:40 | D28: 09:52:20 | E28: the second ward of urology | F28: dispensing check completed | G28: 32
B29: 2020-11-03T09:34:20 | C29: 9:12:30 | D29: 09:34:20 | E29: the second ward of urology | F29: dispensing check completed | G29: 22
B30: 2020-11-02T11:31:55 | C30: 11:25:57 | D30: 11:31:55 | E30: the second ward of urology | F30: dispensing check completed | G30: 6
B31: 2020-11-02T10:05:04 | C31: 9:49:11 | D31: 10:05:04 | E31: the second ward of urology | F31: dispensing check completed | G31: 16
B32: 2020-11-01T11:28:55 | C32: 11:16:37 | D32: 11:28:55 | E32: the second ward of urology | F32: dispensing check completed | G32: 12
B33: 2020-11-01T09:27:41 | C33: 9:09:27 | D33: 09:27:41 | E33: the second ward of urology | F33: dispensing check completed | G33: 18

Sheet ward3
B1: date | C1: Starting time | D1: End Time | E1: department | F1: state | G1: consume time (min)
A2: after
B3: 2021-03-31T11:19:56 | C3: 11:17:04 | D3: 11:19:56 | E3: The first ward of Neurology | F3: dispensing check completed | G3: =(D3-C3)*24*60 -> 3
B4: 2021-03-23T09:19:11 | C4: 09:07:28 | D4: 09:19:11 | E4: The first ward of Neurology | F4: dispensing check completed | G4: 12
B5: 2021-03-22T09:02:42 | C5: 08:47:50 | D5: 09:02:43 | E5: The first ward of Neurology | F5: dispensing check completed | G5: 15
B6: 2021-03-21T09:19:24 | C6: 09:01:01 | D6: 09:19:24 | E6: The first ward of Neurology | F6: dispensing check completed | G6: 18
B7: 2021-03-20T11:16:36 | C7: 11:09:28 | D7: 11:16:36 | E7: The first ward of Neurology | F7: dispensing check completed | G7: 7
B8: 2021-03-19T11:10:56 | C8: 11:08:12 | D8: 11:10:56 | E8: The first ward of Neurology | F8: dispensing check completed | G8: 3
B9: 2021-03-18T11:25:58 | C9: 11:21:05 | D9: 11:25:58 | E9: The first ward of Neurology | F9: dispensing check completed | G9: 5
B10: 2021-03-17T11:13:31 | C10: 11:05:40 | D10: 11:13:31 | E10: The first ward of Neurology | F10: dispensing check completed | G10: 8
B11: 2021-03-16T11:07:33 | C11: 11:05:14 | D11: 11:07:33 | E11: The first ward of Neurology | F11: dispensing check completed | G11: 2
B12: 2021-03-14T11:45:15 | C12: 11:42:08 | D12: 11:45:15 | E12: The first ward of Neurology | F12: dispensing check completed | G12: 3
B13: 2021-03-10T11:49:03 | C13: 11:33:09 | D13: 11:49:03 | E13: The first ward of Neurology | F13: dispensing check completed | G13: 16
B14: 2021-03-09T09:37:00 | C14: 09:16:03 | D14: 09:37:00 | E14: The first ward of Neurology | F14: dispensing check completed | G14: 21
B15: 2021-03-08T09:33:16 | C15: 09:13:15 | D15: 09:33:16 | E15: The first ward of Neurology | F15: dispensing check completed | G15: 20
B16: 2021-03-07T11:24:08 | C16: 11:21:37 | D16: 11:24:08 | E16: The first ward of Neurology | F16: dispensing check completed | G16: 3
B17: 2021-03-06T09:47:07 | C17: 09:29:45 | D17: 09:47:07 | E17: The first ward of Neurology | F17: dispensing check completed | G17: 17
B18: 2021-03-05T09:42:50 | C18: 09:23:48 | D18: 09:42:50 | E18: The first ward of Neurology | F18: dispensing check completed | G18: 19
A19: before
B20: 2020-11-17T09:37:39 | C20: 09:11:16 | D20: 09:37:39 | E20: The first ward of Neurology | F20: dispensing check completed | G20: =(D20-C20)*24*60 -> 26
B21: 2020-11-16T09:34:33 | C21: 09:08:39 | D21: 09:34:33 | E21: The first ward of Neurology | F21: dispensing check completed | G21: 26
B22: 2020-11-12T09:21:43 | C22: 09:03:50 | D22: 09:21:43 | E22: The first ward of Neurology | F22: dispensing check completed | G22: 18
B23: 2020-11-11T09:28:24 | C23: 08:58:55 | D23: 09:28:24 | E23: The first ward of Neurology | F23: dispensing check completed | G23: 29
B24: 2020-11-09T09:14:37 | C24: 09:03:54 | D24: 09:14:37 | E24: The first ward of Neurology | F24: dispensing check completed | G24: 11
B25: 2020-11-05T09:48:48 | C25: 09:34:30 | D25: 09:48:48 | E25: The first ward of Neurology | F25: dispensing check completed | G25: 14
B26: 2020-11-04T09:29:07 | C26: 09:08:05 | D26: 09:29:07 | E26: The first ward of Neurology | F26: dispensing check completed | G26: 21
B27: 2020-11-03T09:11:23 | C27: 08:59:22 | D27: 09:11:23 | E27: The first ward of Neurology | F27: dispensing check completed | G27: 12
B28: 2020-11-02T09:33:44 | C28: 09:17:10 | D28: 09:33:44 | E28: The first ward of Neurology | F28: dispensing check completed | G28: 17
B29: 2020-11-01T09:55:49 | C29: 09:38:54 | D29: 09:55:49 | E29: The first ward of Neurology | F29: dispensing check completed | G29: 17

Sheet ward4
B1: date | C1: Starting time | D1: End Time | E1: department | F1: state | G1: consume time (min)
A2: after
B3: 2021-03-31T11:18:40 | C3: 11:06:56 | D3: 11:18:40 | E3: The first ward of Hematology | F3: dispensing check completed | G3: =(D3-C3)*24*60 -> 12
B4: 2021-03-31T08:56:23 | C4: 8:39:01 | D4: 08:56:23 | E4: The first ward of Hematology | F4: dispensing check completed | G4: 17
B5: 2021-03-30T11:39:50 | C5: 11:18:30 | D5: 11:39:50 | E5: The first ward of Hematology | F5: dispensing check completed | G5: 21
B6: 2021-03-30T09:24:29 | C6: 9:03:06 | D6: 09:24:29 | E6: The first ward of Hematology | F6: dispensing check completed | G6: 21
B7: 2021-03-24T09:21:46 | C7: 9:00:10 | D7: 09:21:46 | E7: The first ward of Hematology | F7: dispensing check completed | G7: 22
B8: 2021-03-23T11:40:55 | C8: 11:15:54 | D8: 11:40:55 | E8: The first ward of Hematology | F8: dispensing check completed | G8: 25
B9: 2021-03-23T08:56:45 | C9: 8:40:08 | D9: 08:56:45 | E9: The first ward of Hematology | F9: dispensing check completed | G9: 17
B10: 2021-03-22T09:55:37 | C10: 9:23:24 | D10: 09:55:37 | E10: The first ward of Hematology | F10: dispensing check completed | G10: 32
B11: 2021-03-21T09:45:25 | C11: 9:25:18 | D11: 09:45:25 | E11: The first ward of Hematology | F11: dispensing check completed | G11: 20
B12: 2021-03-20T11:52:54 | C12: 11:31:19 | D12: 11:52:54 | E12: The first ward of Hematology | F12: dispensing check completed | G12: 22
B13: 2021-03-19T11:30:14 | C13: 11:15:43 | D13: 11:30:14 | E13: The first ward of Hematology | F13: dispensing check completed | G13: 15
B14: 2021-03-19T09:01:54 | C14: 8:45:33 | D14: 09:01:54 | E14: The first ward of Hematology | F14: dispensing check completed | G14: 16
B15: 2021-03-18T08:58:58 | C15: 8:48:07 | D15: 08:58:58 | E15: The first ward of Hematology | F15: dispensing check completed | G15: 11
B16: 2021-03-17T11:38:27 | C16: 11:18:39 | D16: 11:38:27 | E16: The first ward of Hematology | F16: dispensing check completed | G16: 20
B17: 2021-03-17T09:23:49 | C17: 9:07:27 | D17: 09:23:49 | E17: The first ward of Hematology | F17: dispensing check completed | G17: 16
B18: 2021-03-16T11:42:35 | C18: 11:12:49 | D18: 11:42:35 | E18: The first ward of Hematology | F18: dispensing check completed | G18: 30
B19: 2021-03-16T09:21:10 | C19: 8:59:49 | D19: 09:21:10 | E19: The first ward of Hematology | F19: dispensing check completed | G19: 21
B20: 2021-03-14T11:58:44 | C20: 11:41:22 | D20: 11:58:44 | E20: The first ward of Hematology | F20: dispensing check completed | G20: 17
B21: 2021-03-14T09:24:16 | C21: 8:37:44 | D21: 09:24:16 | E21: The first ward of Hematology | F21: dispensing check completed | G21: 47
B22: 2021-03-13T11:41:51 | C22: 11:25:38 | D22: 11:41:51 | E22: The first ward of Hematology | F22: dispensing check completed | G22: 16
B23: 2021-03-10T11:46:39 | C23: 11:29:14 | D23: 11:46:39 | E23: The first ward of Hematology | F23: dispensing check completed | G23: 17
B24: 2021-03-10T09:16:48 | C24: 8:55:18 | D24: 09:16:48 | E24: The first ward of Hematology | F24: dispensing check completed | G24: 22
B25: 2021-03-09T09:34:25 | C25: 9:07:28 | D25: 09:34:25 | E25: The first ward of Hematology | F25: dispensing check completed | G25: 27
B26: 2021-03-08T11:53:42 | C26: 11:24:50 | D26: 11:53:42 | E26: The first ward of Hematology | F26: dispensing check completed | G26: 29
B27: 2021-03-08T09:26:03 | C27: 9:00:01 | D27: 09:26:03 | E27: The first ward of Hematology | F27: dispensing check completed | G27: 26
B28: 2021-03-07T11:43:36 | C28: 11:20:54 | D28: 11:43:36 | E28: The first ward of Hematology | F28: dispensing check completed | G28: 23
B29: 2021-03-07T09:56:48 | C29: 9:31:22 | D29: 09:56:48 | E29: The first ward of Hematology | F29: dispensing check completed | G29: 25
B30: 2021-03-06T11:45:03 | C30: 11:24:25 | D30: 11:45:03 | E30: The first ward of Hematology | F30: dispensing check completed | G30: 21
B31: 2021-03-06T09:37:25 | C31: 9:25:56 | D31: 09:37:25 | E31: The first ward of Hematology | F31: dispensing check completed | G31: 11
B32: 2021-03-05T11:34:53 | C32: 11:22:44 | D32: 11:34:53 | E32: The first ward of Hematology | F32: dispensing check completed | G32: 12
B33: 2021-03-05T09:35:05 | C33: 9:17:07 | D33: 09:35:05 | E33: The first ward of Hematology | F33: dispensing check completed | G33: 18
A34: before
B35: 2020-11-28T10:39:27 | C35: 10:16:56 | D35: 10:39:27 | E35: The first ward of Hematology | F35: dispensing check completed | G35: =(D35-C35)*24*60 -> 23
B36: 2020-11-23T10:32:35 | C36: 10:03:42 | D36: 10:32:35 | E36: The first ward of Hematology | F36: dispensing check completed | G36: 29
B37: 2020-11-22T10:49:29 | C37: 10:05:38 | D37: 10:49:29 | E37: The first ward of Hematology | F37: dispensing check completed | G37: 44
B38: 2020-11-21T10:37:32 | C38: 10:02:53 | D38: 10:37:32 | E38: The first ward of Hematology | F38: dispensing check completed | G38: 35
B39: 2020-11-20T10:28:22 | C39: 10:05:33 | D39: 10:28:22 | E39: The first ward of Hematology | F39: dispensing check completed | G39: 23
B40: 2020-11-19T10:25:53 | C40: 10:05:59 | D40: 10:25:53 | E40: The first ward of Hematology | F40: dispensing check completed | G40: 20
B41: 2020-11-18T10:45:12 | C41: 10:04:30 | D41: 10:45:12 | E41: The first ward of Hematology | F41: dispensing check completed | G41: 41
B42: 2020-11-17T10:44:41 | C42: 10:20:57 | D42: 10:44:41 | E42: The first ward of Hematology | F42: dispensing check completed | G42: 24
B43: 2020-11-16T10:22:46 | C43: 10:03:27 | D43: 10:22:46 | E43: The first ward of Hematology | F43: dispensing check completed | G43: 19
B44: 2020-11-15T10:41:27 | C44: 10:09:28 | D44: 10:41:27 | E44: The first ward of Hematology | F44: dispensing check completed | G44: 32
B45: 2020-11-14T10:36:59 | C45: 10:07:58 | D45: 10:36:59 | E45: The first ward of Hematology | F45: dispensing check completed | G45: 29
B46: 2020-11-12T10:37:08 | C46: 10:04:54 | D46: 10:37:08 | E46: The first ward of Hematology | F46: dispensing check completed | G46: 32
B47: 2020-11-11T10:48:05 | C47: 10:27:01 | D47: 10:48:05 | E47: The first ward of Hematology | F47: dispensing check completed | G47: 21
B48: 2020-11-10T10:33:06 | C48: 10:02:03 | D48: 10:33:06 | E48: The first ward of Hematology | F48: dispensing check completed | G48: 31
B49: 2020-11-09T10:29:48 | C49: 10:04:56 | D49: 10:29:48 | E49: The first ward of Hematology | F49: dispensing check completed | G49: 25
B50: 2020-11-08T10:39:28 | C50: 10:10:46 | D50: 10:39:28 | E50: The first ward of Hematology | F50: dispensing check completed | G50: 29
B51: 2020-11-07T10:32:46 | C51: 10:10:14 | D51: 10:32:46 | E51: The first ward of Hematology | F51: dispensing check completed | G51: 23
B52: 2020-11-06T10:23:24 | C52: 10:02:57 | D52: 10:23:24 | E52: The first ward of Hematology | F52: dispensing check completed | G52: 20
B53: 2020-11-05T10:37:50 | C53: 10:13:17 | D53: 10:37:50 | E53: The first ward of Hematology | F53: dispensing check completed | G53: 25
B54: 2020-11-04T10:47:00 | C54: 10:09:38 | D54: 10:47:00 | E54: The first ward of Hematology | F54: dispensing check completed | G54: 37
B55: 2020-11-03T10:33:13 | C55: 10:06:39 | D55: 10:33:13 | E55: The first ward of Hematology | F55: dispensing check completed | G55: 27
B56: 2020-11-02T10:27:19 | C56: 9:59:08 | D56: 10:27:19 | E56: The first ward of Hematology | F56: dispensing check completed | G56: 28
B57: 2020-11-01T10:32:47 | C57: 10:11:06 | D57: 10:32:47 | E57: The first ward of Hematology | F57: dispensing check completed | G57: 22

Sheet ward5
B1: date | C1: Starting time | D1: End Time | E1: department | F1: state | G1: consume time (min)
A2: after
B3: 2021-03-31 | C3: 11:20:22 | D3: 11:37:16 | E3: traditional chinese medicine ward | F3: dispensing check completed | G3: =(D3-C3)*24*60 -> 17
B4: 2021-03-31T09:41:37 | C4: 9:03:21 | D4: 9:41:37 | E4: traditional chinese medicine ward | F4: dispensing check completed | G4: 38
B5: 2021-03-23T10:40:02 | C5: 10:21:45 | D5: 10:40:02 | E5: traditional chinese medicine ward | F5: dispensing check completed | G5: 18
B6: 2021-03-20T11:26:25 | C6: 11:06:53 | D6: 11:26:25 | E6: traditional chinese medicine ward | F6: dispensing check completed | G6: 20
B7: 2021-03-20T09:10:21 | C7: 8:19:02 | D7: 9:10:21 | E7: traditional chinese medicine ward | F7: dispensing check completed | G7: 51
B8: 2021-03-19T09:41:07 | C8: 9:10:07 | D8: 9:41:07 | E8: traditional chinese medicine ward | F8: dispensing check completed | G8: 31
B9: 2021-03-15T09:24:11 | C9: 8:55:16 | D9: 9:24:11 | E9: traditional chinese medicine ward | F9: dispensing check completed | G9: 29
B10: 2021-03-14T11:56:03 | C10: 11:47:22 | D10: 11:56:03 | E10: traditional chinese medicine ward | F10: dispensing check completed | G10: 9
B11: 2021-03-14T09:37:20 | C11: 9:08:30 | D11: 9:37:20 | E11: traditional chinese medicine ward | F11: dispensing check completed | G11: 29
B12: 2021-03-13T11:34:31 | C12: 11:27:52 | D12: 11:34:31 | E12: traditional chinese medicine ward | F12: dispensing check completed | G12: 7
B13: 2021-03-12T09:25:51 | C13: 8:53:00 | D13: 9:25:51 | E13: traditional chinese medicine ward | F13: dispensing check completed | G13: 33
B14: 2021-03-10T11:32:29 | C14: 11:25:40 | D14: 11:32:29 | E14: traditional chinese medicine ward | F14: dispensing check completed | G14: 7
B15: 2021-03-10T09:17:29 | C15: 8:48:52 | D15: 9:17:29 | E15: traditional chinese medicine ward | F15: dispensing check completed | G15: 29
B16: 2021-03-09T11:47:45 | C16: 11:34:37 | D16: 11:47:45 | E16: traditional chinese medicine ward | F16: dispensing check completed | G16: 13
B17: 2021-03-09T09:45:28 | C17: 9:07:18 | D17: 9:45:28 | E17: traditional chinese medicine ward | F17: dispensing check completed | G17: 38
B18: 2021-03-08T09:27:09 | C18: 8:56:16 | D18: 9:27:09 | E18: traditional chinese medicine ward | F18: dispensing check completed | G18: 31
B19: 2021-03-07T11:20:57 | C19: 11:18:37 | D19: 11:20:57 | E19: traditional chinese medicine ward | F19: dispensing check completed | G19: 2
B20: 2021-03-07T09:59:04 | C20: 9:21:54 | D20: 9:59:04 | E20: traditional chinese medicine ward | F20: dispensing check completed | G20: 37
B21: 2021-03-06T11:21:58 | C21: 11:19:19 | D21: 11:21:58 | E21: traditional chinese medicine ward | F21: dispensing check completed | G21: 3
B22: 2021-03-06T09:10:44 | C22: 8:47:49 | D22: 9:10:44 | E22: traditional chinese medicine ward | F22: dispensing check completed | G22: 23
B23: 2021-03-05T11:25:30 | C23: 11:19:30 | D23: 11:25:30 | E23: traditional chinese medicine ward | F23: dispensing check completed | G23: 6
B24: 2021-03-05T09:25:09 | C24: 9:06:17 | D24: 9:25:09 | E24: traditional chinese medicine ward | F24: dispensing check completed | G24: 19
A25: before
B26: 2020-11-29T10:11:02 | C26: 9:11:41 | D26: 10:11:02 | E26: traditional chinese medicine ward | F26: dispensing check completed | G26: =(D26-C26)*24*60 -> 59
B27: 2020-11-28T10:22:45 | C27: 9:07:31 | D27: 10:22:45 | E27: traditional chinese medicine ward | F27: dispensing check completed | G27: 75
B28: 2020-11-27T10:32:01 | C28: 9:32:06 | D28: 10:32:01 | E28: traditional chinese medicine ward | F28: dispensing check completed | G28: 60
B29: 2020-11-25T10:09:50 | C29: 9:04:55 | D29: 10:09:50 | E29: traditional chinese medicine ward | F29: dispensing check completed | G29: 65
B30: 2020-11-24T10:11:13 | C30: 9:08:52 | D30: 10:11:13 | E30: traditional chinese medicine ward | F30: dispensing check completed | G30: 62
B31: 2020-11-23T10:11:46 | C31: 9:14:31 | D31: 10:11:46 | E31: traditional chinese medicine ward | F31: dispensing check completed | G31: 57
B32: 2020-11-22T10:13:30 | C32: 9:24:43 | D32: 10:13:30 | E32: traditional chinese medicine ward | F32: dispensing check completed | G32: 49
B33: 2020-11-21T10:02:33 | C33: 9:01:35 | D33: 10:02:33 | E33: traditional chinese medicine ward | F33: dispensing check completed | G33: 61
B34: 2020-11-20T09:53:28 | C34: 9:00:53 | D34: 9:53:28 | E34: traditional chinese medicine ward | F34: dispensing check completed | G34: 53
B35: 2020-11-19T10:46:38 | C35: 9:40:26 | D35: 10:46:38 | E35: traditional chinese medicine ward | F35: dispensing check completed | G35: 66
B36: 2020-11-18T10:31:04 | C36: 9:20:09 | D36: 10:31:04 | E36: traditional chinese medicine ward | F36: dispensing check completed | G36: 71
B37: 2020-11-17T10:15:45 | C37: 9:10:29 | D37: 10:15:45 | E37: traditional chinese medicine ward | F37: dispensing check completed | G37: 65
B38: 2020-11-16T10:20:03 | C38: 9:18:35 | D38: 10:20:03 | E38: traditional chinese medicine ward | F38: dispensing check completed | G38: 61
B39: 2020-11-15T09:59:49 | C39: 9:06:31 | D39: 9:59:49 | E39: traditional chinese medicine ward | F39: dispensing check completed | G39: 53
B40: 2020-11-14T10:26:40 | C40: 9:18:58 | D40: 10:26:40 | E40: traditional chinese medicine ward | F40: dispensing check completed | G40: 68
B41: 2020-11-12T10:31:31 | C41: 9:23:02 | D41: 10:31:31 | E41: traditional chinese medicine ward | F41: dispensing check completed | G41: 68
B42: 2020-11-11T10:39:04 | C42: 9:31:30 | D42: 10:39:04 | E42: traditional chinese medicine ward | F42: dispensing check completed | G42: 68
B43: 2020-11-10T10:22:01 | C43: 9:30:27 | D43: 10:22:01 | E43: traditional chinese medicine ward | F43: dispensing check completed | G43: 52
B44: 2020-11-09T10:04:21 | C44: 9:11:15 | D44: 10:04:21 | E44: traditional chinese medicine ward | F44: dispensing check completed | G44: 53
B45: 2020-11-08T10:10:00 | C45: 8:58:12 | D45: 10:10:00 | E45: traditional chinese medicine ward | F45: dispensing check completed | G45: 72
B46: 2020-11-07T10:20:12 | C46: 9:16:15 | D46: 10:20:12 | E46: traditional chinese medicine ward | F46: dispensing check completed | G46: 64
B47: 2020-11-06T10:04:52 | C47: 9:14:08 | D47: 10:04:52 | E47: traditional chinese medicine ward | F47: dispensing check completed | G47: 51
B48: 2020-11-05T10:25:35 | C48: 9:24:46 | D48: 10:25:35 | E48: traditional chinese medicine ward | F48: dispensing check completed | G48: 61
B49: 2020-11-04T10:48:52 | C49: 9:33:21 | D49: 10:48:52 | E49: traditional chinese medicine ward | F49: dispensing check completed | G49: 76
B50: 2020-11-03T09:55:47 | C50: 9:02:40 | D50: 9:55:47 | E50: traditional chinese medicine ward | F50: dispensing check completed | G50: 53
B51: 2020-11-02T10:30:24 | C51: 9:18:55 | D51: 10:30:24 | E51: traditional chinese medicine ward | F51: dispensing check completed | G51: 71
B52: 2020-11-01T10:29:22 | C52: 9:22:03 | D52: 10:29:22 | E52: traditional chinese medicine ward | F52: dispensing check completed | G52: 67
